Cogmind - Beta 16 @@@ ROGUE MODE // 2025.10.29 @ 20:42:21 Player: Mxykikker Result: Self-destructed Performance ------------- Evolutions (5) 2500 Regions Visited (4) 800 Robots Destroyed (42) 210 Value Destroyed (1063) 1063 Prototype IDs (19) 380 Alien Tech Used (0) 0 Bonus (793) 793 TOTAL SCORE: 5746 Bonus ------- Registered with UFD 300 Met Optimus in HQ 500 Friendly Fire -7 Cogmind --------- Core Integrity 1000/1000 Matter 280/300 Energy 290/290 System Corruption 0% Temperature Cool (0) Movement Rolling (115) Ox1 Location -5/Factory Parts ------- > --- POWER (2) -------- Improved Deuterium Engine > --- PROPULSION (4) --- Armored Huge Wheel > --- UTILITY (8) ------ Large Storage Unit > --- WEAPON (3) ------- Powered Hammer Ripper Power Sword > --- INVENTORY (15) --- Scrap Suit Rocket Booster Makeshift ECM Suite Mapping Drone Bay (3/3) Heavy Particle Cannon Flak Gun Slug Cannon LU-1G1's Laser Shovel Makeshift Sword DRS Beacon (Ready) Peak State ------------ > --- POWER ------------ Improved Deuterium Engine > --- PROPULSION ------- Armored Huge Wheel > --- UTILITY ---------- Large Storage Unit Machine Analyzer Melee Analysis Suite Tower Shield > --- WEAPON ----------- Powered Hammer Ripper Power Sword > --- INVENTORY -------- Scrap Suit Makeshift ECM Suite Mapping Drone Bay Heavy Particle Cannon Flak Gun Slug Cannon LU-1G1's Laser Shovel Makeshift Sword DRS Beacon [Rating: 56] Favorites ----------- Power Ion Engine Engine Ion Engine Power Core Light Fission Core Propulsion Wheel Treads Light Treads Wheel Wheel Utility Large Storage Unit Device Seismic Detector Storage Large Storage Unit Processor Signal Interpreter Protection Tower Shield Weapon Makeshift Sword Energy Gun Medium Laser Energy Cannon Subdweller Beam Cannon Ballistic Gun Assault Rifle Ballistic Cannon Light Cannon Launcher Subdweller Shrapnel Launcher Special Weapon LU-1G1's Laser Shovel Impact Weapon Powered Hammer Slashing Weapon Makeshift Sword Build | -11 -10 -10 -7 -5 ------- Run | Yrd Mat Sub Scr Fac Slots Evolved 10 | . . . . 10 Power 1 | . . . . 1 Propulsion 2 | . . . . 2 Utility 6 | . . . . 6 Weapon 1 | . . . . 1 Parts Attached 50 | 7 11 16 12 4 Power 10 | 1 2 3 4 . Engine 9 | 1 2 3 3 . Core 1 | . . . 1 . Reactor . | . . . . . Propulsion 10 | 2 3 3 2 . Treads 3 | 2 1 . . . Leg . | . . . . . Wheel 7 | . 2 3 2 . Hover . | . . . . . Flight . | . . . . . Utility 11 | 2 2 3 1 3 Device 2 | 1 . . 1 . Storage 3 | 1 2 . . . Processor 3 | . . 1 . 2 Hackware . | . . . . . Protection 3 | . . 2 . 1 Artifact . | . . . . . Weapon 19 | 2 4 7 5 1 Energy Gun 1 | 1 . . . . Energy Cannon 2 | . . 2 . . Ballistic Gun 3 | 1 . 1 1 . Ballistic Cannon 2 | . . 2 . . Launcher 3 | . 2 1 . . Special Weapon 2 | . 1 . 1 . Impact Weapon 1 | . . . . 1 Slashing Weapon 5 | . 1 1 3 . Piercing Weapon . | . . . . . Special Melee Weapon . | . . . . . Unidentified Prototypes 1 | . . . 1 . Parts Lost 7 | . . 6 . 1 Power 3 | . . 3 . . Propulsion 2 | . . 2 . . Utility 1 | . . . . 1 Weapon 1 | . . 1 . . Highest Loss Streak 2 | . . 2 . 1 To Critical Strikes . | . . . . . Average Backups 9 | 1 8 12 9 9 Power . | . . . . . Propulsion 1 | 1 2 1 . . Utility 4 | . 2 5 5 4 Weapon 3 | . 2 4 3 4 Tool/Special . | . . . . . Unused Backups 14 | . . 3 6 5 Power . | . . . . . Propulsion 1 | . . . 1 . Utility 10 | . . 3 4 3 Weapon 3 | . . . 1 2 Tool/Special . | . . . . . Average Slot Usage (%) 90 | . 100 98 81 35 Engine 11 | . 14 13 10 4 Core 1 | . . . 3 . Treads 5 | . 18 3 . . Wheel 17 | . 10 24 18 4 Device 7 | . 14 12 . . Storage 13 | . 14 13 14 4 Processor 3 | . . 1 5 6 Energy Gun 2 | . 11 . . . Energy Cannon 2 | . . 8 . . Ballistic Gun 5 | . 13 4 1 . Launcher 2 | . 3 6 . . Slashing Weapon 13 | . . 7 25 8 Peak Build Rating 56 | 7 8 18 33 56 Average Rating 16 | 5 7 13 23 55 On Entrance 13 | . 7 8 17 33 Avg Prop Armor Cover (%) 6 | . . . 6 . Naked Turns . | . . . . . Heaviest Build 77 | 15 31 42 40 77 Greatest Support 40 | 40 40 40 30 28 Greatest Overweight (x) 10 | 3 1 2 10 2 Average Overweight (x) 1 | . . . 1 2 Largest Inventory Capacity 15 | 8 15 15 15 15 Average Capacity 14 | 7 12 14 15 15 Most Carried 15 | 3 14 15 15 15 Average Carried 11 | 1 8 13 12 11 Final Capacity 15 | 8 15 15 15 15 Final Carried 15 | 3 14 13 15 11 Class Distribution -------------------- 76% | Mutant 21% | Scavenger-Mutant Dominant Class ---------------- Mutant | -10/Materials Scavenger-Mutant | -10/Subcaves Mutant | -7/Scraptown Derelict-Gladiator | -5/Factory Resources | -11 -10 -10 -7 -5 ----------- Run | Yrd Mat Sub Scr Fac Matter Collected 1340 | 273 431 481 140 15 Remotely . | . . . . . Salvage Created 1219 | 23 527 654 . 15 Parts 89 | 3 36 50 . . Haulers Intercepted 2 | . 2 . . . Recyclers Shooed . | . . . . . Parts Field Recycled . | . . . . . Retrieved Matter . | . . . . . Parts Self-Destructed 7 | . . 7 . . Prevented . | . . . . . Parts Restored . | . . . . . Kills | -11 -10 -10 -7 -5 ------- Run | Yrd Mat Sub Scr Fac Combat Hostiles Destroyed 32 | . 17 15 . . Melee 3 | . . 3 . . Guns 11 | . 9 2 . . Cannons 3 | . . 3 . . AOE 15 | . 8 7 . . Classes Destroyed 9 | 1 6 2 . . Worker 5 | . 4 . . 1 Builder 1 | . 1 . . . Tunneler 1 | 1 . . . . Hauler 2 | . 2 . . . Recycler 1 | . 1 . . . Swarmer 8 | . 8 . . . Grunt 10 | . 9 1 . . Artisan 2 | . . 2 . . Subdweller 14 | . . 14 . . Best Kill Streak 7 | 1 7 4 . 1 Combat Bots Only 4 | . 4 4 . . Max Kills in Single Turn 2 | 1 2 2 . 1 Gunslinging . | . . . . . Exploded 2 | . 2 2 . . Melee 1 | . . 1 . . Uniques/NPCs Destroyed . | . . . . . Combat | -11 -10 -10 -7 -5 -------- Run | Yrd Mat Sub Scr Fac Hostile Shots Fired 130 | . 65 40 4 21 Missed 36 | . 20 10 . 6 Hits 94 | . 45 30 4 15 Projectile 94 | . 45 30 4 15 AOE 2 | . . 2 . . Critical Strikes 1 | . . 1 . . Damage Taken 1689 | . 490 749 58 392 Core 215 | . 108 107 . . Absorbed by Shields . | . . . . . Core Remaining (%) 57 | 100 . . 14 . Volleys Fired 110 | 1 56 53 . . Largest 2 | 2 2 2 . . Hottest 160 | 70 100 160 . . Shots Fired 181 | 2 100 79 . . Gun 116 | 2 84 30 . . Cannon 40 | . . 40 . . Launcher 23 | . 14 9 . . Special 2 | . 2 . . . Kinetic 81 | 1 41 39 . . Thermal 86 | 1 45 40 . . Explosive 14 | . 14 . . . Electromagnetic . | . . . . . Robot Hit Streak 29 | 2 16 29 . . Robot Miss Streak 3 | . 3 2 . . Penetration Max . | . . . . . Secondary Targets 1 | . 1 . . . Max Gunslinging Chain 1 | . 1 . . . Shots Hit Robots 119 | 2 56 58 . 3 Core Hits 65 | 1 35 29 . . Critical Kills . | . . . . . Critical Parts Destroyed . | . . . . . Critical Strikes 5 | . 3 2 . . Burn 4 | . 3 1 . . Destroy 1 | . . 1 . . Melee Attacks 24 | . 4 15 1 4 Impact 3 | . . . . 3 Slashing 21 | . 4 15 1 1 Piercing . | . . . . . Sneak Attacks 3 | . . 2 . 1 Combat Hostiles . | . . . . . Follow-up Attacks 1 | . . . . 1 Damage Inflicted 3311 | 24 1453 1690 . 144 Guns 950 | 24 675 251 . . Cannons 322 | . . 322 . . Explosions 1465 | . 763 702 . . Melee 559 | . . 415 . 144 Ramming 15 | . 15 . . . Kinetic 1368 | 12 375 981 . . Thermal 606 | 12 300 294 . . Explosive 763 | . 763 . . . Electromagnetic . | . . . . . Impact 104 | . . . . 104 Slashing 455 | . . 415 . 40 Piercing . | . . . . . Highest Corruption . | . . . . . Average Corruption . | . . . . . Corruption Purged . | . . . . . Corruption Blocked . | . . . . . Overload Shots . | . . . . . Overflow Damage 172 | . 31 91 . 50 Projectiles . | . . . . . Explosions 31 | . 31 . . . Melee 141 | . . 91 . 50 Knockbacks 3 | . . 3 . . Impact . | . . . . . Kinetic 3 | . . 3 . . Secondary . | . . . . . Self-Inflicted Damage 43 | . 7 36 . . Shots 2 | . . 2 . . Rammed 1 | . 1 . . . Targets Rammed 2 | . 2 . . . Kicked . | . . . . . Crushed 1 | . 1 . . . Highest Temperature 139 | 9 90 139 . . Average Temperature 31 | 6 26 50 . . Received Heat Transfer 396 | . 174 198 24 . Siege Activations . | . . . . . Martial Activations . | . . . . . Shielding Activations . | . . . . . Robots Disrupted . | . . . . . Combat Hostiles . | . . . . . Robots Corrupted . | . . . . . Combat Hostiles . | . . . . . Parts Fried 1 | . . . . 1 Impact Corruptions 2 | . . . . 2 Robots Melted . | . . . . . Combat Hostiles . | . . . . . Parts Melted 2 | . 2 . . . Heat Transferred 1813 | 37 1110 666 . . Parts Sabotaged . | . . . . . Parts Stolen . | . . . . . Parts Stripped . | . . . . . Power Chain Reactions . | . . . . . Alert | -11 -10 -10 -7 -5 ------- Run | Yrd Mat Sub Scr Fac Maximum Alert Level 1 | . 1 . . . Low Security (%) 81 | 100 79 . . 100 Level 1 18 | . 20 . . . Level 2 . | . . . . . Level 3 . | . . . . . Level 4 . | . . . . . Level 5 . | . . . . . High Security . | . . . . . Max Security . | . . . . . Peak Influence 298 | 5 298 . . 15 Initial . | . . . . . Average 84 | . 97 . . 2 Influence Increases 714 | 5 659 30 . 20 Destroy 0b10 Robot/C 360 | . 340 20 . . Destroy 0b10 Robot/NC 50 | 5 40 . . 5 Destroy Leader 94 | . 84 10 . . Successful Hack 33 | . 33 . . . Select Force Hacks 60 | . 60 . . . Disable Machine 45 | . 45 . . . Destroy Structure 42 | . 42 . . . Partial Spotted 15 | . . . . 15 Lose Combat Pursuer 15 | . 15 . . . Influence Decreases 714 | 5 374 315 . 20 Entered New Map 137 | . . 137 . . Time Decay 548 | 5 374 154 . 15 Lost Part 29 | . . 24 . 5 Squads Dispatched 5 | . 5 . . . Investigation 5 | . 5 . . . Extermination . | . . . . . Reinforcement . | . . . . . Assault . | . . . . . Garrison . | . . . . . Intercept . | . . . . . Searches Triggered . | . . . . . Construction Impeded . | . . . . . Haulers Reinforced . | . . . . . Active Scanning Responses . | . . . . . Cargo Convoy Interrupts . | . . . . . Stealth | -11 -10 -10 -7 -5 --------- Run | Yrd Mat Sub Scr Fac Distress Signals 4 | . 4 . . . Communications Jammed . | . . . . . Distress Signals . | . . . . . Times Spotted 49 | . 25 15 6 3 Peak Tracking Total 4 | . 4 3 2 3 Tactical Retreats 2 | . 1 . 1 . Traps | -11 -10 -10 -7 -5 ------- Run | Yrd Mat Sub Scr Fac Traps Triggered 2 | . 2 . . . Indirectly . | . . . . . Trap Hack Attempts . | . . . . . Triggered . | . . . . . Disarmed . | . . . . . Reprogrammed . | . . . . . Reused . | . . . . . Traps Extracted . | . . . . . Installed . | . . . . . Triggered . | . . . . . Machines | -11 -10 -10 -7 -5 ---------- Run | Yrd Mat Sub Scr Fac Machines Disabled 5 | . 3 1 1 . Max in Single Turn 1 | . 1 1 1 . Machines Repaired . | . . . . . Machines Dismantled . | . . . . . Machines Sabotaged . | . . . . . Overloaded Fab Kills . | . . . . . Hacking | -11 -10 -10 -7 -5 --------- Run | Yrd Mat Sub Scr Fac Machines Accessed 18 | . 10 2 6 . Terminals 8 | . 8 . . . Fabricators . | . . . . . Repair Stations . | . . . . . Recycling Units 2 | . 2 . . . Scanalyzers . | . . . . . Garrison Access . | . . . . . Total Hacks 42 | . 25 2 15 . Successful 32 | . 15 2 15 . Failed 10 | . 10 . . . Catastrophic 1 | . 1 . . . Database Lockouts . | . . . . . Manual 18 | . 18 . . . Terminals 20 | . 20 . . . Fabricators . | . . . . . Repair Stations . | . . . . . Recycling Units 5 | . 5 . . . Scanalyzers . | . . . . . Garrison Access . | . . . . . Terminal Hacks 19 | . 2 2 15 . Record 15 | . . . 15 . Open Door 1 | . . 1 . . Hauler Manifests 1 | . 1 . . . Registered Components 1 | . 1 . . . Proto ID Catalog 1 | . . 1 . . Fabricator Hacks . | . . . . . Repair Station Hacks . | . . . . . Recycling Unit Hacks 2 | . 2 . . . Report Inventory 2 | . 2 . . . Scanalyzer . | . . . . . Garrison Access Hacks . | . . . . . Unauthorized Hacks 11 | . 11 . . . Terminals 9 | . 9 . . . Botnet 2 | . 2 . . . Skim 7 | . 7 . . . Fabricators . | . . . . . Repair Stations . | . . . . . Recycling Units 2 | . 2 . . . Tunnel 2 | . 2 . . . Scanalyzers . | . . . . . Garrison Access . | . . . . . Data Cores Recovered . | . . . . . Used . | . . . . . Hacking Detections 8 | . 8 . . . Full Trace Events 3 | . 3 . . . Feedback Events . | . . . . . Feedback Blocked . | . . . . . Robot Schematics Acquired . | . . . . . Robots Built . | . . . . . Authchips . | . . . . . Time . | . . . . . Total Robot Build Rating . | . . . . . Part Schematics Acquired . | . . . . . Parts Built . | . . . . . Authchips . | . . . . . Time . | . . . . . Total Part Build Rating . | . . . . . Part Studies Acquired . | . . . . . Parts Repaired . | . . . . . Time . | . . . . . Parts Recycled . | . . . . . Recycled Matter . | . . . . . Retrieved Matter . | . . . . . Retrieved Components . | . . . . . Parts Scanalyzed . | . . . . . Part Schematics Acquired . | . . . . . Parts Damaged . | . . . . . Bothacking | -11 -10 -10 -7 -5 ------------ Run | Yrd Mat Sub Scr Fac Used RIF Installer . | . . . . . Robots Hacked . | . . . . . Non-combat . | . . . . . Combat . | . . . . . Robot Hacks Applied . | . . . . . Relay Couplers Released . | . . . . . Fabnet Peak Effective % . | . . . . . Robots Rewired . | . . . . . Allies Hacked . | . . . . . Hacks Repelled . | . . . . . Allies | -11 -10 -10 -7 -5 -------- Run | Yrd Mat Sub Scr Fac Total Allies . | . . . . . Largest Group . | . . . . . Highest-Rated Group . | . . . . . Highest-Rated Ally . | . . . . . Total Orders . | . . . . . Ally Attacks . | . . . . . Total Damage . | . . . . . Kills . | . . . . . Allies Corrupted . | . . . . . Allies Melted 2 | . . . 2 . Intel | -11 -10 -10 -7 -5 ------- Run | Yrd Mat Sub Scr Fac Active Infowar (turns) 2953 | 35 1388 1449 . 81 Seismic 2872 | 35 1388 1449 . . Machine Analysis 81 | . . . . 81 Robot Analysis Total . | . . . . . Derelict Logs Recovered 6 | . . 1 5 . Drone Launches . | . . . . . Drone Recoveries . | . . . . . Exploration | -11 -10 -10 -7 -5 ------------- Run | Yrd Mat Sub Scr Fac Turns Passed 5780 | 116 1388 1637 2555 84 Spaces Moved 4314 | 61 842 1174 2186 51 Core 9 | 7 . . 2 . Treads 631 | 54 502 75 . . Legs . | . . . . . Wheels 3674 | . 340 1099 2184 51 Hover . | . . . . . Flight . | . . . . . Fastest Speed 50 | 50 95 95 100 130 Average Speed 119 | 154 133 116 114 130 Slowest Speed 550 | 200 160 240 550 130 Overloaded Moves . | . . . . . Propulsion Burnouts . | . . . . . Robots Hopped . | . . . . . Potential Cave-ins . | . . . . . Cave-ins Triggered . | . . . . . Exploration Rate (%) 48 | 5 84 57 92 4 Regions Visited 4 Branch Regions 2 Pre-discovered Areas 7 | . 3 . 4 . Known Exits Taken 2 | . 1 1 . . Unknown Exits Taken 2 | 1 . . 1 . Scrap Searched 16 | . . 4 12 . Spaces Dug 5 | . . . 5 . Terrain Destroyed 164 | . 42 119 3 . Melee . | . . . . . Projectile 8 | . . 8 . . AOE 153 | . 42 111 . . Terrain Rammed . | . . . . . Walls Destroyed . | . . . . . Machines Disabled . | . . . . . Actions | -11 -10 -10 -7 -5 --------- Run | Yrd Mat Sub Scr Fac Total 4730 | 77 984 1357 2249 63 Wait 104 | 6 50 39 6 3 Move 4310 | 60 841 1173 2185 51 Hop . | . . . . . Pick Up 54 | 3 10 25 15 1 Fast Attach 22 | 7 . 6 9 . Attach 14 | . . 9 1 4 Detach 14 | . . 6 8 . Swap 29 | . 17 9 3 . Drop 46 | . 4 20 21 1 Fire 110 | 1 56 53 . . Melee 23 | . 4 15 1 3 Ram 1 | . 1 . . . Kick . | . . . . . Crush 1 | . 1 . . . Escape Stasis . | . . . . . Rewire . | . . . . . Trap . | . . . . . Miscellaneous 2 | . . 2 . . Route ------- -11/Scrapyard -10/Materials (discovered 5 exits: *Mat x3 / [*Min] / *Sub) -10/Subcaves (discovered 3 exits: [*Mat x2] / *Scr) -7/Scraptown (discovered 2 exits: [*Fac x2]) -5/Factory (discovered 1 exit: Ext) History --------- Turn | Location | Event 8 | -11/Scrapyard | Discovered new exit (range 15) 117 | -11/Scrapyard | Entered Materials 308 | -10/Materials | Build established: Mutant 588 | -10/Materials | Discovered new exit (range 13) 987 | -10/Materials | Discovered new exit (range 4) 1053 | -10/Materials | Learned 2 Mines zone layouts 1135 | -10/Materials | Learned Recycling recycling unit intel 1206 | -10/Materials | Identified exit to Materials 1206 | -10/Materials | Identified exit to Subcaves 1362 | -10/Materials | Learned location of Mines (-10) 1414 | -10/Materials | Learned location of 2 exits from Materials 1505 | -10/Materials | Entered Subcaves 1506 | -10/Subcaves | Approached by a straggling Scientist 1732 | -10/Subcaves | Core integrity fell below 50% 1821 | -10/Subcaves | Ambushed by Subdweller buried in earth 1892 | -10/Subcaves | Build established: Scavenger-Mutant 2086 | -10/Subcaves | Discovered new exit (range 12) 2087 | -10/Subcaves | Shifting Twisted Machinery released Battle Cannon 2108 | -10/Subcaves | Shifting Twisted Machinery released Sub. Shrapnel Launcher 2140 | -10/Subcaves | Ambushed by Subdweller buried in earth 2249 | -10/Subcaves | Shifting Twisted Machinery released Mak. Axe 2286 | -10/Subcaves | Shifting Twisted Machinery released Sub. Power Source 2306 | -10/Subcaves | Shifting Twisted Machinery released Piercing Trap 2454 | -10/Subcaves | Scientist uncovered a shortcut to Scraptown 2507 | -10/Subcaves | Visited 4L-MR0's lab 2528 | -10/Subcaves | Found Prototype Protection 2536 | -10/Subcaves | Identified Tower Shield 2738 | -10/Subcaves | Ambushed by Subdwellers from Twisted Machinery 2740 | -10/Subcaves | Ambushed by Subdweller buried in earth 2810 | -10/Subcaves | Discovered new exit (range 7) 2834 | -10/Subcaves | Ambushed by angry Subdweller bent on revenge 2844 | -10/Subcaves | Core integrity fell below 20% 3141 | -10/Subcaves | Identified exit to Scraptown 3142 | -10/Subcaves | Entered Scraptown 3386 | -7/Scraptown | Build established: Mutant 3459 | -7/Scraptown | Scanned Subdweller tech in exchange for log data 3470 | -7/Scraptown | Learned location of Zion (-7) 3471 | -7/Scraptown | Learned location of Warlord (-5) 3474 | -7/Scraptown | Learned Factory emergency access door positions 3507 | -7/Scraptown | Discovered new exit (range 7) 3634 | -7/Scraptown | Visited Shadow of the Wyrm 3657 | -7/Scraptown | Visited Spacefarers 3752 | -7/Scraptown | Learned location of Extension (-5) 3902 | -7/Scraptown | Visited Junk Repository 3938 | -7/Scraptown | Visited Bundlers 4019 | -7/Scraptown | Visited Cyclists 4038 | -7/Scraptown | Visited UFD Registry 4038 | -7/Scraptown | Registered with UFD as "Chaineater" 4058 | -7/Scraptown | Entered Cyclist Reading Room 4106 | -7/Scraptown | Visited TADAMA 4125 | -7/Scraptown | Visited Assassins FH 4333 | -7/Scraptown | Visited Derelict Rescue Squad 4344 | -7/Scraptown | Found DRS Beacon 4364 | -7/Scraptown | Visited Science Guys 4400 | -7/Scraptown | Visited Supply Room 4436 | -7/Scraptown | Visited Curators Association 4449 | -7/Scraptown | Visited Infowarlord's Domain 4479 | -7/Scraptown | Visited Research Penetration Think Tank 4504 | -7/Scraptown | Visited DA-N13 Charitable Foundation 4513 | -7/Scraptown | Found DCF Scrap (32 items) 4569 | -7/Scraptown | Visited LU-1G1's Boring Crew 4589 | -7/Scraptown | Visited Cartography Club 4991 | -7/Scraptown | Delivered Scrap Shield to a Scientist 5333 | -7/Scraptown | Met Optimus 5333 | -7/Scraptown | Accepted into 0bPrime 5393 | -7/Scraptown | Visited Junk Cannon Lab 5437 | -7/Scraptown | Found Scrap Suit 5444 | -7/Scraptown | Civil war broke out across Scraptown 5490 | -7/Scraptown | Discovered new exit (range 5) 5571 | -7/Scraptown | Found Prototype Special Weapon 5572 | -7/Scraptown | Identified LU-1G1's Laser Shovel 5587 | -7/Scraptown | Lost 8 allies 5663 | -7/Scraptown | Lost 4 allies 5697 | -7/Scraptown | Entered Factory 5697 | -5/Factory | Evolved 10 slots: Power x1, Propulsion x2, Utility x6, Weapon x1 5698 | -5/Factory | Identified exit to Extension 5699 | -5/Factory | Attached Tower Shield, gained temporary slots: Power, Propulsion x2, Utility x2, Weapon x2 5781 | -5/Factory | Self-destructed Last Messages --------------- 05765_ ALERT: All DSF locations entering lockdown mode. 05771_ Penetrated by Slug. 05771_ Slug penetrates H-66 Slayer. 05771_ Slug penetrates Nuclear Reactor. 05774_ Power Sword follow-up attack on H-66 Slayer. 05774_ Penetrated by Slug. 05774_ Slug penetrates Nuclear Reactor. 05777_ Penetrated by Slug. 05778_ Slug penetrates Nuclear Reactor. 05780_ Nuclear Reactor explodes. 05780_ H-66 Slayer destroyed. 05780_ Nuclear Reactor explodes. 05780_ W-25 Informer destroyed. 05780_ Tower Shield destroyed. 05781_ Temporary Power slot lost. 05781_ Temporary Propulsion slot lost. 05781_ Temporary Utility slot lost. 05781_ Temporary Weapon slot lost. Map ----- +----------------------------------------------------+ | ?????????????????????????????????????????????????? | | ?????????????????????????????????"""?"""?????????? | | ?????????????????????????????????"""?"""?????????? | | ?????????????????????????????????"""?"""?????????? | | ?????????????????????????????????????????????????? | | ?????????????????????????????????????????????????? | | ?????????????????????????????????????????????????? | | ?????????????????????????????"""?????????????????? | | ?????????????????????????????"T"?????????????????? | | ?????????????????"""?"""?"""?????????????????????? | | ?????????????????"""?""" """?????????????????????? | | ?????????????????"""?""" """?????????????????????? | | ??????????????????????? ?????? ?????T???????????? | | ?????????????????"""?""" """?? ??????????????????? | | ?????????????????"""?""" """? ??????????????+???? | | ?????????????????""" """ """ ??????????????????? | | ??????????????????? ? ?? #??????????????? | | ??????????????# """ """ """ """ #??????????????? | | ??????????????# """ """ """ """ #??????????????? | | ??????????????# """ """ """ """ #?? ??????????? | | ??????????????# # ??????????? | | ##########????# """ """ = ?????????? | | #????# """ """* ?????????? | | #????# """ """ % ????????? | | == #????# h[[ ????????? | | == #????# @ ????????? | | #????# ### #??????????????? | | #????# # t #??????????????? | | #????# # # ???????????? | | #????# # #? ?????????? | | #????# # #?? ?????????? | | #????# + #??? ?????????? | | ??????# # #???? ??????????? | | ? ????????# # #??????##+#??????????? | | ###+########### # #????????????????????? | | # #????????????????????? | | # #????????????????????? | | # #????????????????????? | | #########????????????????????? | | """ """ #????????????????????????????? | | #!! " """ """ #????????????????????????????? | | #![ """ """ """ #????????????????????????????? | | # G #????????????????????????????? | | # """ """ """ #????????????????????????????? | | # " """ """ #????????????????????????????? | | # """ """ +????????????????????????????? | | # ?? #????????????????????????????? | | ######## """ """ #????????????????????????????? | | #??????# """ """ #????????????????????????????? | | #??????# """ """? ?????????????????????????????? | +----------------------------------------------------+ Best States ------------- Heat Dissipation 40 Energy Generation 18 Energy Capacity 290 Matter Stores 300 Matter Capacity 300 Sight Range 16 Terrain Scan Density 10 Armor Coverage 2000 Evasion (%) 41 Melee Accuracy 5 Recoil Reduction 2 Item Schematics ----------------- None Robot Schematics ------------------ None Fabricated ------------ Nothing Repaired ---------- Nothing Studied --------- None Alien Tech Used ----------------- None Achievements -------------- Bob, First Of His Name Challenges ------------ None Game ------ Seed PulseIonSuperbattery Manual? 0 Play Time 00:55:06 Cumulative 91.0 hours Start 2025.10.29 @ 19:41:24 End 2025.10.29 @ 20:42:21 Sessions 1 Manual Loads 0 Difficulty Rogue Special Mode None Game No. 141 Rogue 141 Adventurer 0 Explorer 0 Win Type - Total 0 Types 0/0/0/0/0/0/0/0/0/0 Lore% 31 Gallery% 32 Achievement% 26 Wizard Run 0 Options --------- Layout 1 ASCII 0 Keyboard 0 Movement Arrows Keybinds 0 Fullscreen 1 Font 24/Smallcaps Map View 50x35 Zoom Use 0% Tactical HUD 1 Map Filters NONE Filters NONE Steam 1 RUN: ce963fe1-a3d9-40d0-ba5b-3fc4f2454d7d